Workbook

Sheet ChallengeConfig
B1: Id | C1: Name | D1: RecommendFightAbility | E1: MapId | F1: CoreItem | G1: Type | H1: DifficultType | I1: OpenRule | J1: Time | K1: ItemShow | L1: MapTime | M1: ReviveTime | N1: MostTime | O1: ChapterEventBg | P1: Deaths | Q1: IsExplore | R1: SweepingOpenRule | S1: SweepingStoreProbability | T1: SweepingStoreId | U1: SweepingMonsterProbability | V1: SweepingMonsterId
B2: int | C2: string | D2: int | E2: int | F2: mut,int#int,1 | G2: int | H2: int | I2: mut,int#int,2 | J2: int | K2: mut,int#int,1 | L2: int | M2: mut,int#int,1 | N2: int | O2: string | P2: int | Q2: int | R2: mut,int#int,1 | S2: mut,int#int,2 | T2: int | U2: mut,int#int,2 | V2: int
B3: 2 | C3: 3 | D3: 3 | E3: 2 | F3: 3 | G3: 2 | H3: 2 | I3: 2 | J3: 2 | K3: 3 | L3: 2 | M3: 2 | N3: 2 | O3: 3 | P3: 2 | Q3: 2 | R3: 2 | S3: 4 | T3: 4 | U3: 4 | V3: 4
B4: 地图id | C4: 副本名称 | D4: 推荐战力 | E4: 对应副本id | F4: 重点道具预览 | G4: 副本所属类别 1普通 2试炼 3精英 4传说 | H4: 地图难度类型 1简单 2普通 3困难 4地狱 | I4: 开启条件 关卡id（副本id）#等级 | J4: 限定通关时间 （用于三星判断） | K4: 副本掉落预览 | L4: 副本总时间（秒） | M4: 复活时间公式 | N4: 副本中单场战斗最长时间，超过判负（秒） | O4: 剧情背景图 | P4: 限定死亡次数 （用于三星判断） | Q4: 是否有探索度 1有 0没有 | R4: 副本扫荡开启条件 普通：1#星数 精英：2#完成功绩数 | S4: 副本扫荡云游商人出现概率 | T4: 副本扫荡出现 云游商人id | U4: 副本扫荡精英怪出现概率 | V4: 副本扫荡出现 精英怪怪物组
A5: 默认值 | B5: 0 | D5: 0 | E5: 0 | F5: null | G5: 0 | H5: 0 | I5: null | J5: 0 | K5: null | L5: 0 | M5: null | N5: 0 | P5: 0 | Q5: 0 | R5: 1#3 | S5: null
A6: 正确性校对
A7: 校对值
B8: 100 | C8: 序章 | D8: 100 | E8: 100 | F8: 4#1508 | G8: 1 | H8: 1 | I8: 0#0 | J8: 240 | K8: 3#19 | L8: 9999999999 | M8: 0#0#0#5 | N8: 600 | O8: r_duihuabg_001 | P8: 2 | Q8: 1 | R8: 1#3
B9: 101 | C9: 浓雾森林 | D9: 35000 | E9: 101 | F9: 4#3#14 | G9: 1 | H9: 1 | I9: 3101#0 | J9: 120 | K9: 4#3#14 | L9: 1200 | M9: 0#0#0#5 | N9: 90 | O9: r_duihuabg_001 | P9: 2 | Q9: 1 | R9: 1#3
B10: 102 | C10: 三途津 | D10: 53000 | E10: 102 | F10: 4#3#14 | G10: 1 | H10: 1 | I10: 4201#0 | J10: 180 | K10: 4#3#14 | L10: 1200 | M10: 0#0#0#5 | N10: 90 | O10: r_duihuabg_002 | P10: 2 | Q10: 1 | R10: 1#3
B11: 103 | C11: 逃难者 | D11: 79000 | E11: 103 | F11: 4#3 | G11: 1 | H11: 1 | I11: 5201#0 | J11: 180 | K11: 4#14#3 | L11: 1200 | M11: 0#0#0#5 | N11: 90 | O11: r_duihuabg_003 | P11: 2 | Q11: 1 | R11: 1#3
B12: 104 | C12: 藏宝图 | D12: 92000 | E12: 104 | F12: 12001#4 | G12: 1 | H12: 1 | I12: 6201#0 | J12: 240 | K12: 4#14#3 | L12: 1200 | M12: 0#0#0#5 | N12: 90 | O12: r_duihuabg_004 | P12: 2 | Q12: 1 | R12: 1#3
B13: 105 | C13: 孤岛 | D13: 105000 | E13: 105 | F13: 12001#4 | G13: 1 | H13: 1 | I13: 7201#0 | J13: 240 | K13: 4#14#3 | L13: 1200 | M13: 0#0#0#5 | N13: 90 | O13: r_duihuabg_005 | P13: 2 | Q13: 1 | R13: 1#3
B14: 106 | C14: 救援 | D14: 113000 | E14: 106 | F14: 12001#4 | G14: 1 | H14: 1 | I14: 8201#0 | J14: 240 | K14: 12001#4#14#3 | L14: 1200 | M14: 0#0#0#5 | N14: 90 | O14: r_duihuabg_001 | P14: 2 | Q14: 1 | R14: 1#3
B15: 107 | C15: 追回财物 | D15: 139000 | E15: 107 | F15: 12001#4 | G15: 1 | H15: 1 | I15: 10201#0 | J15: 240 | K15: 12001#4#14#3 | L15: 1200 | M15: 0#0#0#5 | N15: 90 | O15: r_duihuabg_002 | P15: 2 | Q15: 1 | R15: 1#3
B16: 108 | C16: 终亡教会 | D16: 153000 | E16: 108 | F16: 12001#4 | G16: 1 | H16: 1 | I16: 14201#0 | J16: 240 | K16: 12001#4#14#3 | L16: 1200 | M16: 0#0#0#5 | N16: 90 | O16: r_duihuabg_003 | P16: 2 | Q16: 1 | R16: 1#3
B17: 109 | C17: 清理道路 | D17: 166000 | E17: 109 | F17: 12001#12012 | G17: 1 | H17: 1 | I17: 3102#0 | J17: 240 | K17: 12012#12001#4#14#3 | L17: 1200 | M17: 0#0#0#5 | N17: 90 | O17: r_duihuabg_004 | P17: 2 | Q17: 1 | R17: 1#3
B18: 110 | C18: 地堡 | D18: 180000 | E18: 110 | F18: 12001#12012 | G18: 1 | H18: 1 | I18: 6202#0 | J18: 240 | K18: 12012#12001#4#14#3 | L18: 1200 | M18: 0#0#0#5 | N18: 90 | O18: r_duihuabg_005 | P18: 2 | Q18: 1 | R18: 1#3
B19: 111 | C19: 准备 | D19: 192000 | E19: 111 | F19: 12001#12012 | G19: 1 | H19: 1 | I19: 10202#0 | J19: 240 | K19: 12012#12001#4#14#3 | L19: 1200 | M19: 0#0#0#5 | N19: 90 | O19: r_duihuabg_001 | P19: 2 | Q19: 1 | R19: 1#3
B20: 112 | C20: 幻境 | D20: 210000 | E20: 112 | F20: 12001#12012 | G20: 1 | H20: 1 | I20: 15102#0 | J20: 240 | K20: 12012#12001#4#14#3 | L20: 1200 | M20: 0#0#0#5 | N20: 90 | O20: r_duihuabg_002 | P20: 2 | Q20: 1 | R20: 1#3
B21: 113 | C21: 承诺 | D21: 226000 | E21: 113 | F21: 12001#12012 | G21: 1 | H21: 1 | I21: 3403#0 | J21: 240 | K21: 12012#12001#4#14#3 | L21: 1200 | M21: 0#0#0#5 | N21: 90 | O21: r_duihuabg_003 | P21: 2 | Q21: 1 | R21: 1#3
B22: 114 | C22: 影子 | D22: 241000 | E22: 114 | F22: 12001#12012 | G22: 1 | H22: 1 | I22: 7203#0 | J22: 240 | K22: 12012#12001#4#14#3 | L22: 1200 | M22: 0#0#0#5 | N22: 90 | O22: r_duihuabg_004 | P22: 2 | Q22: 1 | R22: 1#3
B23: 115 | C23: 大业 | D23: 266000 | E23: 115 | F23: 12001#12012 | G23: 1 | H23: 1 | I23: 10403#0 | J23: 240 | K23: 12012#12001#4#14#3 | L23: 1200 | M23: 0#0#0#5 | N23: 90 | O23: r_duihuabg_005 | P23: 2 | Q23: 1 | R23: 1#3
B24: 116 | C24: 妖兽疑踪 | D24: 288000 | E24: 116 | F24: 12001#12012 | G24: 1 | H24: 1 | I24: 14203#0 | J24: 240 | K24: 12012#12001#4#14#3 | L24: 1200 | M24: 0#0#0#5 | N24: 90 | O24: r_duihuabg_005 | P24: 2 | Q24: 1 | R24: 1#3
B25: 117 | C25: 风波又起 | D25: 292000 | E25: 117 | F25: 12001#12012 | G25: 1 | H25: 1 | I25: 3254#0 | J25: 240 | K25: 12012#12001#4#14#3 | L25: 1200 | M25: 0#0#0#5 | N25: 90 | O25: r_duihuabg_005 | P25: 2 | Q25: 1 | R25: 1#3
B26: 118 | C26: 又见木羊 | D26: 336000 | E26: 118 | F26: 12001#12012 | G26: 1 | H26: 1 | I26: 7154#0 | J26: 240 | K26: 12012#12001#4#14#3 | L26: 1200 | M26: 0#0#0#5 | N26: 90 | O26: r_duihuabg_005 | P26: 2 | Q26: 1 | R26: 1#3
B27: 119 | C27: 危机将至 | D27: 393000 | E27: 119 | F27: 12001#12012 | G27: 1 | H27: 1 | I27: 12254#0 | J27: 240 | K27: 12012#12001#4#14#3 | L27: 1200 | M27: 0#0#0#5 | N27: 90 | O27: r_duihuabg_005 | P27: 2 | Q27: 1 | R27: 1#3
B28: 120 | C28: 神秘组织 | D28: 506000 | E28: 120 | F28: 12001#12012 | G28: 1 | H28: 1 | I28: 1055#0 | J28: 240 | K28: 12012#12001#4#14#3 | L28: 1200 | M28: 0#0#0#5 | N28: 90 | O28: r_duihuabg_005 | P28: 2 | Q28: 1 | R28: 1#3
B29: 201 | C29: 英雄副本1 | D29: 20000 | E29: 201 | F29: 19#1508#4 | G29: 2 | H29: 1 | I29: 0#15 | J29: 240 | K29: 19#4#3201#3202#3203#3204#3205#3206#3207#3208#3209#3210#3211#3212#3213#3214#3215#3216#3217#3218 | L29: 1200 | M29: 0#0#0#5 | N29: 90 | P29: 4 | Q29: 1
B30: 202 | C30: 英雄副本2 | D30: 26850 | E30: 202 | F30: 19#1508#4 | G30: 2 | H30: 1 | I30: 0#20 | J30: 240 | K30: 19#4#3201#3202#3203#3204#3205#3206#3207#3208#3209#3210#3211#3212#3213#3214#3215#3216#3217#3218 | L30: 1200 | M30: 0#0#0#5 | N30: 90 | P30: 4 | Q30: 1
B31: 203 | C31: 英雄副本3 | D31: 33700 | E31: 203 | F31: 19#1508#4 | G31: 2 | H31: 1 | I31: 0#26 | J31: 240 | K31: 19#4#3201#3202#3203#3204#3205#3206#3207#3208#3209#3210#3211#3212#3213#3214#3215#3216#3217#3218 | L31: 1200 | M31: 0#0#0#5 | N31: 90 | P31: 4 | Q31: 1
B32: 204 | C32: 英雄副本4 | D32: 40550 | E32: 204 | F32: 19#1509#4 | G32: 2 | H32: 1 | I32: 0#31 | J32: 240 | K32: 19#4#3201#3202#3203#3204#3205#3206#3207#3208#3209#3210#3211#3212#3213#3214#3215#3216#3217#3218 | L32: 1200 | M32: 0#0#0#5 | N32: 90 | P32: 4 | Q32: 1
B33: 205 | C33: 英雄副本5 | D33: 70000 | E33: 205 | F33: 19#1509#4 | G33: 2 | H33: 1 | I33: 0#35 | J33: 240 | K33: 19#4#3201#3202#3203#3204#3205#3206#3207#3208#3209#3210#3211#3212#3213#3214#3215#3216#3217#3218 | L33: 1200 | M33: 0#0#0#5 | N33: 90 | P33: 4 | Q33: 1
B34: 206 | C34: 英雄副本6 | D34: 76600 | E34: 206 | F34: 19#1509#4 | G34: 2 | H34: 1 | I34: 0#38 | J34: 240 | K34: 19#4#3201#3202#3203#3204#3205#3206#3207#3208#3209#3210#3211#3212#3213#3214#3215#3216#3217#3218 | L34: 1200 | M34: 0#0#0#5 | N34: 90 | P34: 4 | Q34: 1
B35: 207 | C35: 英雄副本7 | D35: 91200 | E35: 207 | F35: 19#1510#4 | G35: 2 | H35: 1 | I35: 0#42 | J35: 240 | K35: 19#4#3201#3202#3203#3204#3205#3206#3207#3208#3209#3210#3211#3212#3213#3214#3215#3216#3217#3218 | L35: 1200 | M35: 0#0#0#5 | N35: 90 | P35: 4 | Q35: 1
B36: 208 | C36: 英雄副本8 | D36: 106850 | E36: 208 | F36: 19#1510#4 | G36: 2 | H36: 1 | I36: 0#44 | J36: 240 | K36: 19#4#3201#3202#3203#3204#3205#3206#3207#3208#3209#3210#3211#3212#3213#3214#3215#3216#3217#3218 | L36: 1200 | M36: 0#0#0#5 | N36: 90 | P36: 4 | Q36: 1
B37: 209 | C37: 英雄副本9 | D37: 132850 | E37: 209 | F37: 19#1510#4 | G37: 2 | H37: 1 | I37: 0#47 | J37: 240 | K37: 19#4#3201#3202#3203#3204#3205#3206#3207#3208#3209#3210#3211#3212#3213#3214#3215#3216#3217#3218 | L37: 1200 | M37: 0#0#0#5 | N37: 90 | P37: 4 | Q37: 1
B38: 210 | C38: 英雄副本10 | D38: 152150 | E38: 210 | F38: 19#1510#4 | G38: 2 | H38: 1 | I38: 0#49 | J38: 240 | K38: 19#4#3201#3202#3203#3204#3205#3206#3207#3208#3209#3210#3211#3212#3213#3214#3215#3216#3217#3218 | L38: 1200 | M38: 0#0#0#5 | N38: 90 | P38: 4 | Q38: 1
B39: 211 | C39: 英雄副本11 | D39: 177800 | E39: 211 | F39: 19#1511#4 | G39: 2 | H39: 1 | I39: 0#51 | J39: 240 | K39: 19#4#3201#3202#3203#3204#3205#3206#3207#3208#3209#3210#3211#3212#3213#3214#3215#3216#3217#3218 | L39: 1200 | M39: 0#0#0#5 | N39: 90 | P39: 4 | Q39: 1
B40: 212 | C40: 英雄副本12 | D40: 119900 | E40: 212 | F40: 19#1511#4 | G40: 2 | H40: 1 | I40: 0#54 | J40: 240 | K40: 19#4#3201#3202#3203#3204#3205#3206#3207#3208#3209#3210#3211#3212#3213#3214#3215#3216#3217#3218 | L40: 1200 | M40: 0#0#0#5 | N40: 90 | P40: 4 | Q40: 1
B41: 213 | C41: 英雄副本13 | D41: 116950 | E41: 213 | F41: 19#1511#4 | G41: 2 | H41: 1 | I41: 0#55 | J41: 240 | K41: 19#4#3201#3202#3203#3204#3205#3206#3207#3208#3209#3210#3211#3212#3213#3214#3215#3216#3217#3218 | L41: 1200 | M41: 0#0#0#5 | N41: 90 | P41: 4 | Q41: 1
B42: 214 | C42: 英雄副本14 | D42: 114000 | E42: 214 | F42: 19#1511#4 | G42: 2 | H42: 1 | I42: 0#57 | J42: 240 | K42: 19#4#3201#3202#3203#3204#3205#3206#3207#3208#3209#3210#3211#3212#3213#3214#3215#3216#3217#3218 | L42: 1200 | M42: 0#0#0#5 | N42: 90 | P42: 4 | Q42: 1
B43: 215 | C43: 英雄副本15 | D43: 168950 | E43: 215 | F43: 19#1511#4 | G43: 2 | H43: 1 | I43: 0#59 | J43: 240 | K43: 19#4#3201#3202#3203#3204#3205#3206#3207#3208#3209#3210#3211#3212#3213#3214#3215#3216#3217#3218 | L43: 1200 | M43: 0#0#0#5 | N43: 90 | P43: 4 | Q43: 1
B44: 2000 | C44: 试炼副本奖励层 | E44: 2000 | G44: 2 | H44: 1 | I44: 0#0 | J44: 240 | K44: 1509#12012#12001#4#14#3 | L44: 999999999 | M44: 0#0#0#5 | N44: 90 | P44: 4 | Q44: 0
B45: 2001 | C45: 试炼副本 | E45: 2001 | G45: 2 | H45: 1 | I45: 0#0 | J45: 240 | K45: 1509#12012#12001#4#14#3 | L45: 999999999 | M45: 0#0#0#5 | N45: 90 | P45: 4 | Q45: 0
B46: 2002 | C46: 试炼副本 | E46: 2002 | G46: 2 | H46: 1 | I46: 0#0 | J46: 240 | K46: 1509#12012#12001#4#14#3 | L46: 999999999 | M46: 0#0#0#5 | N46: 90 | P46: 4 | Q46: 0
B47: 2003 | C47: 试炼副本 | E47: 2003 | G47: 2 | H47: 1 | I47: 0#0 | J47: 240 | K47: 1509#12012#12001#4#14#3 | L47: 999999999 | M47: 0#0#0#5 | N47: 90 | P47: 4 | Q47: 0
B48: 3011 | C48: 古寺疑云 | D48: 182800 | E48: 301 | F48: 1515#25 | G48: 3 | H48: 1 | I48: 12201#0 | J48: 240 | K48: 19#4#3201#3202#3203#3204#3205#3206#3207#3208#3209#3210#3211#3212#3213#3214#3215#3216#3217#3218 | L48: 1800 | M48: 0#0#0#5 | N48: 90 | P48: 4 | Q48: 0 | R48: 2#7 | S48: 1#100|0#700 | T48: 3 | U48: 1#100|0#1300 | V48: 30101
B49: 3012 | C49: 古寺疑云 | D49: 185600 | E49: 301 | F49: 1515#25 | G49: 3 | H49: 2 | I49: 12201#0 | J49: 240 | K49: 19#4#3201#3202#3203#3204#3205#3206#3207#3208#3209#3210#3211#3212#3213#3214#3215#3216#3217#3218 | L49: 1800 | M49: 0#0#0#5 | N49: 90 | P49: 4 | Q49: 0 | R49: 2#13 | S49: 1#100|0#700 | T49: 3 | U49: 1#100|0#1300 | V49: 30102
B50: 3013 | C50: 古寺疑云 | D50: 187400 | E50: 301 | F50: 1515#25 | G50: 3 | H50: 3 | I50: 12201#0 | J50: 240 | K50: 19#4#3201#3202#3203#3204#3205#3206#3207#3208#3209#3210#3211#3212#3213#3214#3215#3216#3217#3218 | L50: 1800 | M50: 0#0#0#5 | N50: 90 | P50: 4 | Q50: 0 | R50: 2#18 | S50: 1#100|0#700 | T50: 3 | U50: 1#100|0#1300 | V50: 30103
B51: 3014 | C51: 古寺疑云 | D51: 189200 | E51: 301 | F51: 1515#25 | G51: 3 | H51: 4 | I51: 12201#0 | J51: 240 | K51: 19#4#3201#3202#3203#3204#3205#3206#3207#3208#3209#3210#3211#3212#3213#3214#3215#3216#3217#3218 | L51: 1800 | M51: 0#0#0#5 | N51: 90 | P51: 4 | Q51: 0 | R51: 2#23 | S51: 1#100|0#700 | T51: 3 | U51: 1#100|0#1300 | V51: 30104
B52: 3021 | C52: 古墓寻踪 | D52: 191000 | E52: =E48+1 -> 302 | F52: 1515#1516#25 | G52: =G48 -> 3 | H52: 1 | I52: 14201#0 | J52: =J48 -> 240 | K52: =K51 -> 19#4#3201#3202#3203#3204#3205#3206#3207#3208#3209#3210#3211#3212#3213#3214#3215#3216#3217#3218 | L52: 1800 | M52: =M51 -> 0#0#0#5 | N52: 90 | O52: =O51 -> 0 | P52: =P51 -> 4 | Q52: =Q51 -> 0 | R52: 2#6 | S52: 1#100|0#700 | T52: 3 | U52: 1#100|0#1300 | V52: 30201
B53: 3022 | C53: 古墓寻踪 | D53: 196000 | E53: 302 | F53: 1515#1516#25 | G53: 3 | H53: 2 | I53: 14201#0 | J53: 240 | K53: 19#4#3201#3202#3203#3204#3205#3206#3207#3208#3209#3210#3211#3212#3213#3214#3215#3216#3217#3218 | L53: 1800 | M53: 0#0#0#5 | N53: 90 | O53: 0 | P53: 4 | Q53: 0 | R53: 2#11 | S53: 1#100|0#700 | T53: 3 | U53: 1#100|0#1300 | V53: 30202
B54: 3023 | C54: 古墓寻踪 | D54: 200800 | E54: 302 | F54: 1515#1516#25 | G54: 3 | H54: 3 | I54: 14201#0 | J54: 240 | K54: 19#4#3201#3202#3203#3204#3205#3206#3207#3208#3209#3210#3211#3212#3213#3214#3215#3216#3217#3218 | L54: 1800 | M54: 0#0#0#5 | N54: 90 | O54: 0 | P54: 4 | Q54: 0 | R54: 2#15 | S54: 1#100|0#700 | T54: 3 | U54: 1#100|0#1300 | V54: 30203
B55: 3024 | C55: 古墓寻踪 | D55: 205700 | E55: 302 | F55: 1515#1516#25 | G55: 3 | H55: 4 | I55: 14201#0 | J55: 240 | K55: 19#4#3201#3202#3203#3204#3205#3206#3207#3208#3209#3210#3211#3212#3213#3214#3215#3216#3217#3218 | L55: 1800 | M55: 0#0#0#5 | N55: 90 | O55: 0 | P55: 4 | Q55: 0 | R55: 2#20 | S55: 1#100|0#700 | T55: 3 | U55: 1#100|0#1300 | V55: 30204
B56: 3031 | C56: 诡影废墟 | D56: 210200 | E56: 303 | F56: 1515#1516#25 | G56: 3 | H56: 1 | I56: 2302#0 | J56: 240 | K56: 19#4#3201#3202#3203#3204#3205#3206#3207#3208#3209#3210#3211#3212#3213#3214#3215#3216#3217#3218 | L56: 1800 | M56: 0#0#0#5 | N56: 90 | O56: 0 | P56: 4 | Q56: 0 | R56: 2#6 | S56: 1#100|0#700 | T56: 9 | U56: 1#100|0#1300 | V56: 30301
B57: 3032 | C57: 诡影废墟 | D57: 228400 | E57: 303 | F57: 1515#1516#25 | G57: 3 | H57: 2 | I57: 2302#0 | J57: 240 | K57: 19#4#3201#3202#3203#3204#3205#3206#3207#3208#3209#3210#3211#3212#3213#3214#3215#3216#3217#3218 | L57: 1800 | M57: 0#0#0#5 | N57: 90 | O57: 0 | P57: 4 | Q57: 0 | R57: 2#11 | S57: 1#100|0#700 | T57: 9 | U57: 1#100|0#1300 | V57: 30302
B58: 3033 | C58: 诡影废墟 | D58: 242100 | E58: 303 | F58: 1515#1516#25 | G58: 3 | H58: 3 | I58: 2302#0 | J58: 240 | K58: 19#4#3201#3202#3203#3204#3205#3206#3207#3208#3209#3210#3211#3212#3213#3214#3215#3216#3217#3218 | L58: 1800 | M58: 0#0#0#5 | N58: 90 | O58: 0 | P58: 4 | Q58: 0 | R58: 2#17 | S58: 1#100|0#700 | T58: 9 | U58: 1#100|0#1300 | V58: 30303
B59: 3034 | C59: 诡影废墟 | D59: 253400 | E59: 303 | F59: 1515#1516#25 | G59: 3 | H59: 4 | I59: 2302#0 | J59: 240 | K59: 19#4#3201#3202#3203#3204#3205#3206#3207#3208#3209#3210#3211#3212#3213#3214#3215#3216#3217#3218 | L59: 1800 | M59: 0#0#0#5 | N59: 90 | O59: 0 | P59: 4 | Q59: 0 | R59: 2#23 | S59: 1#100|0#700 | T59: 9 | U59: 1#100|0#1300 | V59: 30304
B60: 3041 | C60: 五灵阵法 | D60: 258300 | E60: 304 | F60: 1515#1516#25 | G60: 3 | H60: 1 | I60: 6202#0 | J60: 240 | K60: 19#4#3201#3202#3203#3204#3205#3206#3207#3208#3209#3210#3211#3212#3213#3214#3215#3216#3217#3218 | L60: 1800 | M60: 0#0#0#5 | N60: 90 | O60: 0 | P60: 4 | Q60: 0 | R60: 2#4 | S60: 1#100|0#700 | T60: 9 | U60: 1#100|0#1300 | V60: 30401
B61: 3042 | C61: =C60 -> 五灵阵法 | D61: 271300 | E61: 304 | F61: 1515#1516#25 | G61: 3 | H61: 2 | I61: 6202#0 | J61: 240 | K61: 19#4#3201#3202#3203#3204#3205#3206#3207#3208#3209#3210#3211#3212#3213#3214#3215#3216#3217#3218 | L61: 1800 | M61: 0#0#0#5 | N61: 90 | O61: 0 | P61: 4 | Q61: 0 | R61: 2#8 | S61: 1#100|0#700 | T61: 9 | U61: 1#100|0#1300 | V61: 30402
B62: 3043 | C62: =C61 -> 五灵阵法 | D62: 292400 | E62: 304 | F62: 1515#1516#25 | G62: 3 | H62: 3 | I62: 6202#0 | J62: 240 | K62: 19#4#3201#3202#3203#3204#3205#3206#3207#3208#3209#3210#3211#3212#3213#3214#3215#3216#3217#3218 | L62: 1800 | M62: 0#0#0#5 | N62: 90 | O62: 0 | P62: 4 | Q62: 0 | R62: 2#13 | S62: 1#100|0#700 | T62: 9 | U62: 1#100|0#1300 | V62: 30403
B63: 3044 | C63: =C62 -> 五灵阵法 | D63: 301800 | E63: 304 | F63: 1515#1516#25 | G63: 3 | H63: 4 | I63: 6202#0 | J63: 240 | K63: 19#4#3201#3202#3203#3204#3205#3206#3207#3208#3209#3210#3211#3212#3213#3214#3215#3216#3217#3218 | L63: 1800 | M63: 0#0#0#5 | N63: 90 | O63: 0 | P63: 4 | Q63: 0 | R63: 2#19 | S63: 1#100|0#700 | T63: 9 | U63: 1#100|0#1300 | V63: 30404
B64: 3051 | C64: 琳琅洞天 | D64: 323000 | E64: 305 | F64: 1515#1516#1517#25 | G64: 3 | H64: 1 | I64: 12202#0 | J64: 240 | K64: 19#4#3201#3202#3203#3204#3205#3206#3207#3208#3209#3210#3211#3212#3213#3214#3215#3216#3217#3218 | L64: 1800 | M64: 0#0#0#5 | N64: 90 | O64: 0 | P64: 4 | Q64: 0 | R64: 2#4 | S64: 1#100|0#700 | T64: 9 | U64: 1#100|0#1300 | V64: 30501
B65: 3052 | C65: =C64 -> 琳琅洞天 | D65: 332100 | E65: 305 | F65: 1515#1516#1517#25 | G65: 3 | H65: 2 | I65: 12202#0 | J65: 240 | K65: 19#4#3201#3202#3203#3204#3205#3206#3207#3208#3209#3210#3211#3212#3213#3214#3215#3216#3217#3218 | L65: 1800 | M65: 0#0#0#5 | N65: 90 | O65: 0 | P65: 4 | Q65: 0 | R65: 2#8 | S65: 1#100|0#700 | T65: 9 | U65: 1#100|0#1300 | V65: 30502
B66: 3053 | C66: =C65 -> 琳琅洞天 | D66: 346200 | E66: 305 | F66: 1515#1516#1517#25 | G66: 3 | H66: 3 | I66: 12202#0 | J66: 240 | K66: 19#4#3201#3202#3203#3204#3205#3206#3207#3208#3209#3210#3211#3212#3213#3214#3215#3216#3217#3218 | L66: 1800 | M66: 0#0#0#5 | N66: 90 | O66: 0 | P66: 4 | Q66: 0 | R66: 2#11 | S66: 1#100|0#700 | T66: 9 | U66: 1#100|0#1300 | V66: 30503
B67: 3054 | C67: =C66 -> 琳琅洞天 | D67: 353500 | E67: 305 | F67: 1515#1516#1517#25 | G67: 3 | H67: 4 | I67: 12202#0 | J67: 240 | K67: 19#4#3201#3202#3203#3204#3205#3206#3207#3208#3209#3210#3211#3212#3213#3214#3215#3216#3217#3218 | L67: 1800 | M67: 0#0#0#5 | N67: 90 | O67: 0 | P67: 4 | Q67: 0 | R67: 2#13 | S67: 1#100|0#700 | T67: 9 | U67: 1#100|0#1300 | V67: 30504
B68: 4001 | C68: 无尽副本 | D68: 100000 | E68: 401 | F68: 1509#12001#12012 | G68: 4 | H68: 1 | I68: 0#1 | J68: 240 | K68: 19#4#3201#3202#3203#3204#3205#3206#3207#3208#3209#3210#3211#3212#3213#3214#3215#3216#3217#3218 | L68: 9999999999 | M68: 0#0#0#5 | N68: 90 | O68: 0 | P68: 4 | Q68: 0
B69: 4002 | C69: 无尽副本 | D69: 100000 | E69: 401 | F69: 1509#12001#12012 | G69: 4 | H69: 1 | I69: 0#1 | J69: 240 | K69: 19#4#3201#3202#3203#3204#3205#3206#3207#3208#3209#3210#3211#3212#3213#3214#3215#3216#3217#3218 | L69: 9999999999 | M69: 0#0#0#5 | N69: 90 | O69: 0 | P69: 4 | Q69: 0
B70: 4003 | C70: 无尽副本 | D70: 100000 | E70: 401 | F70: 1509#12001#12012 | G70: 4 | H70: 1 | I70: 0#1 | J70: 240 | K70: 19#4#3201#3202#3203#3204#3205#3206#3207#3208#3209#3210#3211#3212#3213#3214#3215#3216#3217#3218 | L70: 9999999999 | M70: 0#0#0#5 | N70: 90 | O70: 0 | P70: 4 | Q70: 0

Sheet Sheet1
A4: 副本 | C4: 天数 | E4: 推荐战力
A5: 浓雾森林 | B5: 1 | C5: 0 | E5: =VLOOKUP(C5,#REF!,27,TRUE) -> 
A6: 三途津 | B6: 2 | C6: 0.4 | E6: =VLOOKUP(C6,#REF!,27,TRUE) -> 
A7: 逃难者 | B7: 3 | C7: 0.9 | D7: =ROUNDUP(C7,0) -> 1 | E7: =VLOOKUP(D7,#REF!,27,TRUE) ->  | F7: 36000
A8: 藏宝图 | B8: 4 | C8: 1.9 | D8: =ROUNDUP(C8,0) -> 2 | E8: =VLOOKUP(D8,#REF!,27,TRUE) ->  | F8: 50000
A9: 孤岛 | B9: 5 | C9: 2.9 | D9: 3 | E9: =VLOOKUP(D9,#REF!,27,TRUE) ->  | F9: 64000
A10: 救援 | B10: 6 | C10: 4.9 | D10: 5 | E10: =VLOOKUP(D10,#REF!,27,TRUE) ->  | F10: 84000
A11: 追回财物 | B11: 7 | C11: 7.9 | D11: 8 | E11: =VLOOKUP(D11,#REF!,27,TRUE) ->  | F11: 114000
A12: 终亡教会 | B12: 8 | C12: 11.9 | D12: 12 | E12: =VLOOKUP(D12,#REF!,27,TRUE) ->  | F12: 138000
A13: 清理道路 | B13: 9 | C13: =C12+5 -> 16.9 | D13: 17 | E13: =VLOOKUP(D13,#REF!,27,TRUE) ->  | F13: 172000
A14: 地堡 | B14: 10 | C14: =C13+6 -> 22.9 | D14: 23 | E14: =VLOOKUP(D14,#REF!,27,TRUE) ->  | F14: 222000
A15: 准备 | B15: 11 | C15: =C14+7 -> 29.9 | D15: 30 | E15: =VLOOKUP(D15,#REF!,27,TRUE) ->  | F15: 283000
A16: 幻境 | B16: 12 | C16: =C15+8 -> 37.9 | D16: 38 | E16: =VLOOKUP(D16,#REF!,27,TRUE) ->  | F16: 267000
A17: 承诺 | B17: 13 | C17: =C16+9 -> 46.9 | D17: 47 | E17: =VLOOKUP(D17,#REF!,27,TRUE) ->  | F17: 316000
A18: 影子 | B18: 14 | C18: =C17+10 -> 56.9 | D18: 57 | E18: =VLOOKUP(D18,#REF!,27,TRUE) ->  | F18: 383000
A19: 大业 | B19: 15 | C19: =C18+11 -> 67.9 | D19: 68 | E19: =VLOOKUP(D19,#REF!,27,TRUE) ->  | F19: 440000
C24: 0 | D24: 19#1|14#8000
C25: 1 | D25: 4#150|14#50000|3#2500
C26: 2 | D26: 4#150|14#60000|3#3000
C27: 3 | D27: 4#150|14#70000|3#3000 | H27: 绿色
C28: 4 | D28: 4#150|14#80000|3#3000 | H28: 绿色
C29: 5 | D29: 4#150|14#90000|3#3000 | H29: 蓝色
C30: 6 | D30: 12001#10|4#150|14#100000|3#3000 | H30: 蓝色
C31: 7 | D31: 12001#15|4#150|14#100000|3#3000 | H31: 紫色
C32: 8 | D32: 12001#20|4#150|14#100000|3#3000 | H32: 紫色
C33: 9 | D33: 12001#20|12012#5|4#150|14#100000|3#3000 | H33: 紫色
C34: 10 | D34: 12001#20|12012#10|4#150|14#100000|3#3000 | H34: 紫色
C35: 11 | D35: 12001#20|12012#15|4#150|14#100000|3#3000 | H35: 紫色
C36: 12 | D36: 12001#25|12012#15|4#150|14#100000|3#3000 | H36: 橙色t4
C37: 13 | D37: 12001#30|12012#15|4#150|14#100000|3#3000 | H37: 橙色t4
C38: 14 | D38: 12001#30|12012#20|4#150|14#100000|3#3000 | H38: 橙色t4
C39: 15 | D39: 12001#30|12012#25|4#150|14#100000|3#3000 | H39: 橙色t4
C40: 16 | H40: 橙色t4
C41: 17 | H41: 橙色t4
C42: 18 | H42: 橙色t4
C43: 19 | H43: 橙色t4
C44: 20

Sheet Sheet2
B1: 3061 | C1: 死亡沼泽 | D1: =ChallengeConfig!D64*2 -> 646000 | E1: =ChallengeConfig!E64+1 -> 306 | F1: 1511#1511#25 | G1: =ChallengeConfig!G64 -> 3 | H1: =ChallengeConfig!H64 -> 1 | I1: 0#99 | J1: =ChallengeConfig!J64 -> 240 | K1: =ChallengeConfig!K67 -> 19#4#3201#3202#3203#3204#3205#3206#3207#3208#3209#3210#3211#3212#3213#3214#3215#3216#3217#3218 | L1: =ChallengeConfig!L67 -> 1800 | M1: =ChallengeConfig!M67 -> 0#0#0#5 | N1: =ChallengeConfig!N67 -> 90 | O1: =ChallengeConfig!O67 -> 0 | P1: =ChallengeConfig!P67 -> 4 | Q1: =ChallengeConfig!Q67 -> 0 | R1: 2#3 | S1: 1#100|0#900 | T1: 9 | U1: 1#100|0#1300 | V1: 10102
B2: 3062 | C2: 死亡沼泽 | D2: =ChallengeConfig!D65*2 -> 664200 | E2: =ChallengeConfig!E65+1 -> 306 | F2: 1511#1511#25 | G2: =ChallengeConfig!G65 -> 3 | H2: =ChallengeConfig!H65 -> 2 | I2: 0#99 | J2: =ChallengeConfig!J65 -> 240 | K2: =K1 -> 19#4#3201#3202#3203#3204#3205#3206#3207#3208#3209#3210#3211#3212#3213#3214#3215#3216#3217#3218 | L2: 1800 | M2: 0#0#0#5 | N2: 90 | O2: 0 | P2: 4 | Q2: 0 | R2: 2#6 | S2: 1#100|0#900 | T2: 9 | U2: 1#100|0#1300 | V2: 10102
B3: 3063 | C3: 死亡沼泽 | D3: =ChallengeConfig!D66*2 -> 692400 | E3: =ChallengeConfig!E66+1 -> 306 | F3: 1511#1511#25 | G3: =ChallengeConfig!G66 -> 3 | H3: =ChallengeConfig!H66 -> 3 | I3: 0#99 | J3: =ChallengeConfig!J66 -> 240 | K3: 19#4#3201#3202#3203#3204#3205#3206#3207#3208#3209#3210#3211#3212#3213#3214#3215#3216#3217#3218 | L3: 1800 | M3: 0#0#0#5 | N3: 90 | O3: 0 | P3: 4 | Q3: 0 | R3: 2#9 | S3: 1#100|0#900 | T3: 9 | U3: 1#100|0#1300 | V3: 10102
B4: 3064 | C4: 死亡沼泽 | D4: =ChallengeConfig!D67*2 -> 707000 | E4: =ChallengeConfig!E67+1 -> 306 | F4: 1511#1511#25 | G4: =ChallengeConfig!G67 -> 3 | H4: =ChallengeConfig!H67 -> 4 | I4: 0#99 | J4: =ChallengeConfig!J67 -> 240 | K4: 19#4#3201#3202#3203#3204#3205#3206#3207#3208#3209#3210#3211#3212#3213#3214#3215#3216#3217#3218 | L4: 1800 | M4: 0#0#0#5 | N4: 90 | O4: 0 | P4: 4 | Q4: 0 | R4: 2#10 | S4: 1#100|0#900 | T4: 9 | U4: 1#100|0#1300 | V4: 10102
